Workbook

Sheet Лист1
A1: Школа | C1: МБОУ Спасская НШ-ДС | F1: Утвердил: | G1: должность | H1: Директор школы
A2: Типовое примерное меню приготавливаемых блюд | G2: фамилия | H2: Гариева А.М.
A3: Возрастная категория | E3: 7-11 лет | G3: дата | H3: 1 | I3: 9 | J3: 2023
H4: день | I4: месяц | J4: год
A5: Неделя | B5: День недели | C5: Прием пищи | D5: Раздел меню | E5: Блюда | F5: Вес блюда, г | G5: Белки | H5: Жиры | I5: Углеводы | J5: Калорийность | K5: № рецептуры | L5: Цена
A6: 1 | B6: 1 | C6: Завтрак | D6: гор.блюдо | E6: Котлета из мяса кур | F6: 90 | G6: 8.75 | H6: 10.6 | I6: 8.13 | J6: 198 | K6: 294
E7: Макаронные изделия отварные с маслом сливочным | F7: 155 | G7: 5.12 | H7: 4.53 | I7: 31.99 | J7: 189.3 | K7: 203
D8: гор.напиток | E8: Компот из сухофруктов | F8: 200 | G8: 0.66 | H8: 0.09 | I8: 22.03 | J8: 92.9 | K8: 349
D9: хлеб | E9: Хлеб ржаной | F9: 20 | G9: 1.32 | H9: 0.24 | I9: 7.92 | J9: 39.6
D10: фрукты
E11: Салат из моркови с яблоками | F11: 60 | G11: 0.64 | H11: 0.1 | I11: 5.11 | J11: 23.94 | K11: 59
E12: Печенье | F12: 40 | G12: 3.7 | H12: 4.7 | I12: 4.85 | J12: 21.5
D13: итого | F13: =SUM(F6:F12) -> 565 | G13: =SUM(G6:G12) -> 20.19 | H13: 20.26 | I13: 80.03 | J13: 565.24 | L13: =SUM(L6:L12) -> 0
A14: =A6 -> 1 | B14: =B6 -> 1 | C14: Обед | D14: закуска
D15: 1 блюдо
D16: 2 блюдо
D17: гарнир
D18: напиток
D19: хлеб бел.
D20: хлеб черн.
D23: итого | F23: =SUM(F14:F22) -> 0 | G23: =SUM(G14:G22) -> 0 | H23: 0 | I23: 0 | J23: 0 | L23: =SUM(L14:L22) -> 0
A24: =A6 -> 1 | B24: =B6 -> 1 | C24: Итого за день: | F24: =F13+F23 -> 565 | G24: =G13+G23 -> 20.19 | H24: 20.26 | I24: 80.03 | J24: 565.24 | L24: =L13+L23 -> 0
A25: 1 | B25: 2 | C25: Завтрак | D25: гор.блюдо | E25: Гуляш из говядины | F25: 100 | G25: 9.45 | H25: 10.71 | I25: 22.89 | J25: 221 | K25: 260
E26: Каша гречневая рассыпчатая с маслом сливочным | F26: 155 | G26: 4.61 | H26: 6.32 | I26: 27.79 | J26: 207 | K26: 171
D27: гор.напиток | E27: Чай с сахаром, с лимоном | F27: 200 | G27: 0.13 | H27: 0.02 | I27: 10.2 | J27: 42 | K27: 377
D28: хлеб | E28: Хлеб пшеничный | F28: 50 | G28: 3.04 | H28: 0.32 | I28: 19.68 | J28: 94
D29: фрукты
E30: Сыр порционно | F30: 10 | G30: 2.63 | H30: 2.66 | I30: 0 | J30: 34.33
D32: итого | F32: =SUM(F25:F31) -> 515 | G32: =SUM(G25:G31) -> 19.86 | H32: =SUM(H25:H31) -> 20.03 | I32: =SUM(I25:I31) -> 80.56 | J32: =SUM(J25:J31) -> 598.33 | L32: 0
A33: =A25 -> 1 | B33: =B25 -> 2 | C33: Обед | D33: закуска
D34: 1 блюдо
D35: 2 блюдо
D36: гарнир
D37: напиток
D38: хлеб бел.
D39: хлеб черн.
D42: итого | F42: =SUM(F33:F41) -> 0 | G42: =SUM(G33:G41) -> 0 | H42: =SUM(H33:H41) -> 0 | I42: =SUM(I33:I41) -> 0 | J42: =SUM(J33:J41) -> 0 | L42: 0
A43: =A25 -> 1 | B43: =B25 -> 2 | C43: Итого за день: | F43: =F32+F42 -> 515 | G43: =G32+G42 -> 19.86 | H43: =H32+H42 -> 20.03 | I43: =I32+I42 -> 80.56 | J43: =J32+J42 -> 598.33 | L43: 0
A44: 1 | B44: 3 | C44: Завтрак | D44: гор.блюдо | E44: Птица запеченая с томатным соусом | F44: 110 | G44: 12 | H44: 10.04 | I44: 8.69 | J44: 195.1 | K44: 293
E45: Рис отварной рассыпчатый с маслом сливочным | F45: 155 | G45: 3.74 | H45: 7.02 | I45: 39.23 | J45: 209 | K45: 304
D46: гор.напиток | E46: Чай с сахаром | F46: 200 | G46: 0.07 | H46: 0.02 | I46: 10 | J46: 40 | K46: 376
D47: хлеб | E47: Хлеб пшеничный | F47: 20 | G47: 1.52 | H47: 0.16 | I47: 9.84 | J47: 47
D48: фрукты
E49: Хлеб ржаной | F49: 20 | G49: 1.32 | H49: 0.24 | I49: 7.92 | J49: 39.6
D51: итого | F51: =SUM(F44:F50) -> 505 | G51: =SUM(G44:G50) -> 18.65 | H51: =SUM(H44:H50) -> 17.48 | I51: =SUM(I44:I50) -> 75.68 | J51: =SUM(J44:J50) -> 530.7 | L51: 0
A52: =A44 -> 1 | B52: =B44 -> 3 | C52: Обед | D52: закуска
D53: 1 блюдо
D54: 2 блюдо
D55: гарнир
D56: напиток
D57: хлеб бел.
D58: хлеб черн.
D61: итого | F61: =SUM(F52:F60) -> 0 | G61: =SUM(G52:G60) -> 0 | H61: =SUM(H52:H60) -> 0 | I61: =SUM(I52:I60) -> 0 | J61: =SUM(J52:J60) -> 0 | L61: 0
A62: =A44 -> 1 | B62: =B44 -> 3 | C62: Итого за день: | F62: =F51+F61 -> 505 | G62: =G51+G61 -> 18.65 | H62: =H51+H61 -> 17.48 | I62: =I51+I61 -> 75.68 | J62: =J51+J61 -> 530.7 | L62: 0
A63: 1 | B63: 4 | C63: Завтрак | D63: гор.блюдо | E63: Рыба, тушенная в томате с овощами | F63: 100 | G63: 9.15 | H63: 5.62 | I63: 7.8 | J63: 105 | K63: 229
E64: Пюре картофельное с маслом ливочным | F64: 155 | G64: 3.1 | H64: 8.43 | I64: 20.581 | J64: 170.25 | K64: 312
D65: гор.напиток | E65: Компот из свежих яблок | F65: 200 | G65: 0.16 | H65: 0.16 | I65: 13.91 | J65: 58.74 | K65: 3425
D66: хлеб | E66: Хлеб пшеничный | F66: 20 | G66: 1.52 | H66: 0.16 | I66: 9.84 | J66: 47
D67: фрукты
E68: Салат из белокочанной капусты | F68: 60 | G68: 0.79 | H68: 1.95 | I68: 3.88 | J68: 36.24 | K68: 45
E69: Хлеб ржаной | F69: 20 | G69: 1.32 | H69: 0.24 | I69: 7.92 | J69: 39.6
D70: итого | F70: =SUM(F63:F69) -> 555 | G70: =SUM(G63:G69) -> 16.04 | H70: =SUM(H63:H69) -> 16.56 | I70: =SUM(I63:I69) -> 63.931 | J70: =SUM(J63:J69) -> 456.83 | L70: 0
A71: =A63 -> 1 | B71: =B63 -> 4 | C71: Обед | D71: закуска
D72: 1 блюдо
D73: 2 блюдо
D74: гарнир
D75: напиток
D76: хлеб бел.
D77: хлеб черн.
D80: итого | F80: =SUM(F71:F79) -> 0 | G80: =SUM(G71:G79) -> 0 | H80: =SUM(H71:H79) -> 0 | I80: =SUM(I71:I79) -> 0 | J80: =SUM(J71:J79) -> 0 | L80: 0
A81: =A63 -> 1 | B81: =B63 -> 4 | C81: Итого за день: | F81: =F70+F80 -> 555 | G81: =G70+G80 -> 16.04 | H81: =H70+H80 -> 16.56 | I81: =I70+I80 -> 63.931 | J81: =J70+J80 -> 456.83 | L81: 0
A82: 1 | B82: 5 | C82: Завтрак | D82: гор.блюдо | E82: Котлеты говяжьи | F82: 90 | G82: 10.18 | H82: 13.25 | I82: 11.77 | J82: 183.4 | K82: 271
E83: Гороховое пбре с маслом сливочным | F83: 155 | G83: 5.62 | H83: 5.04 | I83: 34.99 | J83: 208.5 | K83: 199
D84: гор.напиток | E84: Чай с мармеладом | F84: 200 | G84: 0.09 | H84: 0.02 | I84: 11.91 | J84: 48.15 | K84: 376
D85: хлеб | E85: Хлебпшеничный | F85: 20 | G85: 1.52 | H85: 0.16 | I85: 9.84 | J85: 47
D86: фрукты
E87: Салат из моркови с сахаром | F87: 60 | G87: 0.74 | H87: 0.06 | I87: 6.58 | J87: 49.02 | K87: 62
E88: Хлеб ржаной | F88: 20 | G88: 1.32 | H88: 0.24 | I88: 7.92 | J88: 40
D89: итого | F89: =SUM(F82:F88) -> 545 | G89: =SUM(G82:G88) -> 19.47 | H89: =SUM(H82:H88) -> 18.77 | I89: =SUM(I82:I88) -> 83.01 | J89: =SUM(J82:J88) -> 576.07 | L89: 0
A90: =A82 -> 1 | B90: =B82 -> 5 | C90: Обед | D90: закуска
D91: 1 блюдо
D92: 2 блюдо
D93: гарнир
D94: напиток
D95: хлеб бел.
D96: хлеб черн.
D99: итого | F99: =SUM(F90:F98) -> 0 | G99: =SUM(G90:G98) -> 0 | H99: =SUM(H90:H98) -> 0 | I99: =SUM(I90:I98) -> 0 | J99: =SUM(J90:J98) -> 0 | L99: 0
A100: =A82 -> 1 | B100: =B82 -> 5 | C100: Итого за день: | F100: =F89+F99 -> 545 | G100: =G89+G99 -> 19.47 | H100: =H89+H99 -> 18.77 | I100: =I89+I99 -> 83.01 | J100: =J89+J99 -> 576.07 | L100: 0
A101: 1 | B101: 6 | C101: Завтрак | D101: гор.блюдо | E101: Пельмени мясные отварные с маслом сливочным | F101: 175 | G101: 13.04 | H101: 15.868 | I101: 40.822 | J101: 346 | K101: 390
D103: гор.напиток | E103: Чай с сахаром, с лимоном | F103: 200 | G103: 0.13 | H103: 0.02 | I103: 10.2 | J103: 42
D104: хлеб | E104: Хлеб пшеничный | F104: 40 | G104: 3.04 | H104: 0.32 | I104: 19.68 | J104: 94
D105: фрукты | E105: Плоды и ягоды свежие (яблоки) | F105: 100 | G105: 0.4 | H105: 0.4 | I105: 9.8 | J105: 47
E106: Сыр порционно | F106: 15 | G106: 3.05 | H106: 3.95 | I106: 0 | J106: 51.5
D108: итого | F108: =SUM(F101:F107) -> 530 | G108: =SUM(G101:G107) -> 19.66 | H108: 20.558 | I108: 80.502 | J108: 580.5 | L108: =SUM(L101:L107) -> 0
A109: =A101 -> 1 | B109: 6 | C109: Обед | D109: закуска
D110: 1 блюдо
D111: 2 блюдо
D112: гарнир
D113: напиток
D114: хлеб бел.
D115: хлеб черн.
D118: итого | F118: =SUM(F109:F117) -> 0 | G118: =SUM(G109:G117) -> 0 | H118: 0 | I118: 0 | J118: 0 | L118: =SUM(L109:L117) -> 0
A119: =A101 -> 1 | B119: =B101 -> 6 | C119: Итого за день: | F119: =F108+F118 -> 530 | G119: =G108+G118 -> 19.66 | H119: =H108+H118 -> 20.558 | I119: =I108+I118 -> 80.502 | J119: =J108+J118 -> 580.5 | L119: 0
A120: 2 | B120: 1 | C120: Завтрак | D120: гор.блюдо | E120: Биточки рыбные | F120: 90 | G120: 9.68 | H120: 8.38 | I120: 4.156 | J120: 156.4 | K120: 234
E121: Рис отварной рассыпчатый с маслом сливочным | F121: 155 | G121: 3.74 | H121: 7.02 | I121: 39.23 | J121: 209 | K121: 304
D122: гор.напиток | E122: Чай с сахаром, с яблоком | F122: 200 | G122: 0.11 | H122: 0.06 | I122: 10.99 | J122: 45.05 | K122: 376
D123: хлеб | E123: Хлеб ржаной | F123: 20 | G123: 1.32 | H123: 0.24 | I123: 7.92 | J123: 40
D124: фрукты | E124: Плоды и ягоды свежие (апельсин) | F124: 100 | G124: 0.8 | H124: 0.2 | I124: 8.05 | J124: 43
D127: итого | F127: =SUM(F120:F126) -> 565 | G127: =SUM(G120:G126) -> 15.65 | H127: 15.9 | I127: 70.346 | J127: 493.45 | L127: =SUM(L120:L126) -> 0
A128: =A120 -> 2 | B128: 1 | C128: Обед | D128: закуска
D129: 1 блюдо
D130: 2 блюдо
D131: гарнир
D132: напиток
D133: хлеб бел.
D134: хлеб черн.
D137: итого | F137: =SUM(F128:F136) -> 0 | G137: =SUM(G128:G136) -> 0 | H137: 0 | I137: 0 | J137: 0 | L137: =SUM(L128:L136) -> 0
A138: =A120 -> 2 | B138: =B120 -> 1 | C138: Итого за день: | F138: =F127+F137 -> 565 | G138: =G127+G137 -> 15.65 | H138: =H127+H137 -> 15.9 | I138: =I127+I137 -> 70.346 | J138: =J127+J137 -> 493.45 | L138: 0
A139: 2 | B139: 2 | C139: Завтрак | D139: гор.блюдо | E139: Овощи тушеные с мясом | F139: 200 | G139: 8.01 | H139: 13.78 | I139: 22.34 | J139: 211.35 | K139: 143
D141: гор.напиток | E141: Чай "Витаминный" с ягодами | F141: 200 | G141: 0.24 | H141: 0.09 | I141: 12.42 | J141: 54.2
D142: хлеб | E142: Хлеб пшеничный | F142: 35 | G142: 2.66 | H142: 0.28 | I142: 147.22 | J142: 82.25
E143: Хлеб ржаной | F143: 30 | G143: 1.98 | H143: 0.36 | I143: 11.88 | J143: 59.4
E144: Бутерброд с сыром | F144: 60 | G144: 7.26 | H144: 4.35 | I144: 22.14 | J144: 157.25
D146: итого | F146: =SUM(F139:F145) -> 525 | G146: =SUM(G139:G145) -> 20.15 | H146: 18.86 | I146: 216 | J146: 564.45 | L146: =SUM(L139:L145) -> 0
A147: =A139 -> 2 | B147: 2 | C147: Обед | D147: закуска
D148: 1 блюдо
D149: 2 блюдо
D150: гарнир
D151: напиток
D152: хлеб бел.
D153: хлеб черн.
D156: итого | F156: =SUM(F147:F155) -> 0 | G156: =SUM(G147:G155) -> 0 | H156: 0 | I156: 0 | J156: 0 | L156: =SUM(L147:L155) -> 0
A157: =A139 -> 2 | B157: =B139 -> 2 | C157: Итого за день: | F157: =F146+F156 -> 525 | G157: =G146+G156 -> 20.15 | H157: =H146+H156 -> 18.86 | I157: =I146+I156 -> 216 | J157: =J146+J156 -> 564.45 | L157: 0
A158: 2 | B158: 3 | C158: Завтрак | D158: гор.блюдо | E158: Котлета из мяса кур | F158: 90 | G158: 11.85 | H158: 8.06 | I158: 18.53 | J158: 198 | K158: 294
E159: Пюре картофельное с маслом сливочным | F159: 155 | G159: 3.13 | H159: 8.43 | I159: 20.51 | J159: 170.25 | K159: 312
D160: гор.напиток | E160: Чай с сахаром | F160: 200 | G160: 0.07 | H160: 0.02 | I160: 10 | J160: 40 | K160: 376
D161: хлеб | E161: Хлеб пшеничный | F161: 35 | G161: 2.66 | H161: 0.28 | I161: 17.22 | J161: 82
E162: Хлеб ржаной | F162: 30 | G162: 1.98 | H162: 0.36 | I162: 11.88 | J162: 59.4
D163: закуска | E163: Салат из свёклы отварной | F163: 60 | G163: 0.84 | H163: 3.61 | I163: 4.96 | J163: 55.68 | K163: 52
D165: итого | F165: =SUM(F158:F164) -> 570 | G165: =SUM(G158:G164) -> 20.53 | H165: 20.76 | I165: 83.1 | J165: 605.33 | L165: =SUM(L158:L164) -> 0
A166: =A158 -> 2 | B166: 3 | C166: Обед | D166: закуска
D167: 1 блюдо
D168: 2 блюдо
D169: гарнир
D170: напиток
D171: хлеб бел.
D172: хлеб черн.
D175: итого | F175: =SUM(F166:F174) -> 0 | G175: =SUM(G166:G174) -> 0 | H175: 0 | I175: 0 | J175: 0 | L175: =SUM(L166:L174) -> 0
A176: =A158 -> 2 | B176: =B158 -> 3 | C176: Итого за день: | F176: =F165+F175 -> 570 | G176: =G165+G175 -> 20.53 | H176: =H165+H175 -> 20.76 | I176: =I165+I175 -> 83.1 | J176: =J165+J175 -> 605.33 | L176: 0
A177: 2 | B177: 4 | C177: Завтрак | D177: гор.блюдо | E177: Тефтели мясные в сметанно-томатном соусе | F177: 100 | G177: 7.284 | H177: 11.94 | I177: 8.36 | J177: 124 | K177: 279
E178: Макаронные изделия отварные с маслом сливочным | F178: 185 | G178: 5.1 | H178: 3.62 | I178: 31.96 | J178: 176.1 | K178: 203
D179: гор.напиток | E179: Напиток из свежих фруктов | F179: 200 | G179: 0.34 | H179: 0.17 | I179: 11.48 | J179: 63.6
D180: хлеб | E180: Хлеб пшеничный | F180: 20 | G180: 1.52 | H180: 0.16 | I180: 9.84 | J180: 47
E181: Хлеб ржаной | F181: 20 | G181: 1.32 | H181: 0.24 | I181: 7.92 | J181: 40
D184: итого | F184: =SUM(F177:F183) -> 525 | G184: =SUM(G177:G183) -> 15.564 | H184: 16.13 | I184: 69.56 | J184: 450.7 | L184: =SUM(L177:L183) -> 0
A185: =A177 -> 2 | B185: 4 | C185: Обед | D185: закуска
D186: 1 блюдо
D187: 2 блюдо
D188: гарнир
D189: напиток
D190: хлеб бел.
D191: хлеб черн.
D194: итого | F194: =SUM(F185:F193) -> 0 | G194: =SUM(G185:G193) -> 0 | H194: 0 | I194: 0 | J194: 0 | L194: =SUM(L185:L193) -> 0
A195: =A177 -> 2 | B195: =B177 -> 4 | C195: Итого за день: | F195: =F184+F194 -> 525 | G195: =G184+G194 -> 15.564 | H195: =H184+H194 -> 16.13 | I195: =I184+I194 -> 69.56 | J195: =J184+J194 -> 450.7 | L195: 0
A196: 2 | B196: 5 | C196: Завтрак | D196: гор.блюдо | E196: Плов из говядины с рисом | F196: 200 | G196: 16.03 | H196: 18.16 | I196: 45.91 | J196: 415.89 | K196: 265
D198: гор.напиток | E198: Чай с сахаром, с яблоком | F198: 200 | G198: 0.11 | H198: 0.06 | I198: 10.99 | J198: 45 | K198: 376
D199: хлеб | E199: Хлеб пшеничный | F199: 25 | G199: 1.9 | H199: 0.2 | I199: 12.3 | J199: 59
E200: Хлеб ржаной | F200: 20 | G200: 1.32 | H200: 0.24 | I200: 7.92 | J200: 40
D201: закуска | E201: Салат из свежей капусты с морковью | F201: 60 | G201: 0.79 | H201: 1.95 | I201: 3.88 | J201: 36.24 | K201: 45
D203: итого | F203: =SUM(F196:F202) -> 505 | G203: =SUM(G196:G202) -> 20.15 | H203: 20.61 | I203: 81 | J203: 596.13 | L203: =SUM(L196:L202) -> 0
A204: =A196 -> 2 | B204: 5 | C204: Обед | D204: закуска
D205: 1 блюдо
D206: 2 блюдо
D207: гарнир
D208: напиток
D209: хлеб бел.
D210: хлеб черн.
D213: итого | F213: =SUM(F204:F212) -> 0 | G213: =SUM(G204:G212) -> 0 | H213: 0 | I213: 0 | J213: 0 | L213: =SUM(L204:L212) -> 0
A214: =A196 -> 2 | B214: =B196 -> 5 | C214: Итого за день: | F214: =F203+F213 -> 505 | G214: =G203+G213 -> 20.15 | H214: 20.61 | I214: 81 | J214: 596.13 | L214: =L203+L213 -> 0
A215: 2 | B215: 6 | C215: Завтрак | D215: гор.блюдо | E215: Котлеты говяжьи | F215: 90 | G215: 10.18 | H215: 13.25 | I215: 11.77 | J215: 183.4 | K215: 271
E216: Каша гречневая рассыпчатая с маслом сливочным | F216: 155 | G216: 4.61 | H216: 6.32 | I216: 27.79 | J216: 207 | K216: 171
D217: гор.напиток | E217: Чай с сахаром | F217: 200 | G217: 0.07 | H217: 0.02 | I217: 10 | J217: 40 | K217: 376
D218: хлеб | E218: Хлеб пшеничный | F218: 25 | G218: 1.9 | H218: 0.2 | I218: 12.3 | J218: 59
E219: Хлеб ржаной | F219: 20 | G219: 1.32 | H219: 0.24 | I219: 7.92 | J219: 40
D222: итого | F222: =SUM(F215:F221) -> 490 | G222: =SUM(G215:G221) -> 18.08 | H222: 20.03 | I222: 69.78 | J222: 529.4 | L222: =SUM(L215:L221) -> 0
A223: =A215 -> 2 | B223: 6 | C223: Обед | D223: закуска
D224: 1 блюдо
D225: 2 блюдо
D226: гарнир
D227: напиток
D228: хлеб бел.
D229: хлеб черн.
D232: итого | F232: =SUM(F223:F231) -> 0 | G232: =SUM(G223:G231) -> 0 | H232: 0 | I232: 0 | J232: 0 | L232: =SUM(L223:L231) -> 0
A233: =A215 -> 2 | B233: =B215 -> 6 | C233: Итого за день: | F233: =F222+F232 -> 490 | G233: =G222+G232 -> 18.08 | H233: 20.03 | I233: 69.78 | J233: 529.4 | L233: =L222+L232 -> 0
C234: Среднее значение за период: | F234: =(F24+F43+F62+F81+F100+F119+F138+F157+F176+F195+F214+F233)/(IF(F24=0,0,1)+IF(F43=0,0,1)+IF(F62=0,0,1)+IF(F81=0,0,1)+IF(F100=0,0,1)+IF(F119=0,0,1)+IF(F138=0,0,1)+IF(F157=0,0,1)+IF(F176=0,0,1)+IF(F195=0,0,1)+IF(F214=0,0,1)+IF(F233=0,0,1)) -> 532.9166667 | G234: =(G24+G43+G62+G81+G100+G119+G138+G157+G176+G195+G214+G233)/(IF(G24=0,0,1)+IF(G43=0,0,1)+IF(G62=0,0,1)+IF(G81=0,0,1)+IF(G100=0,0,1)+IF(G119=0,0,1)+IF(G138=0,0,1)+IF(G157=0,0,1)+IF(G176=0,0,1)+IF(G195=0,0,1)+IF(G214=0,0,1)+IF(G233=0,0,1)) -> 18.66616667 | H234: =(H24+H43+H62+H81+H100+H119+H138+H157+H176+H195+H214+H233)/(IF(H24=0,0,1)+IF(H43=0,0,1)+IF(H62=0,0,1)+IF(H81=0,0,1)+IF(H100=0,0,1)+IF(H119=0,0,1)+IF(H138=0,0,1)+IF(H157=0,0,1)+IF(H176=0,0,1)+IF(H195=0,0,1)+ IF(H214=0,0,1)+IF(H233=0,0,1)) -> 18.829 | I234: =(I24+I43+I62+I81+I100+I119+I138+I157+I176+I195+I214+I233)/(IF(I24=0,0,1)+IF(I43=0,0,1)+IF(I62=0,0,1)+IF(I81=0,0,1)+IF(I100=0,0,1)+IF(I119=0,0,1)+IF(I138=0,0,1)+IF(I157=0,0,1)+IF(I176=0,0,1)+IF(I195=0,0,1)+IF(I214=0,0,1)+IF(I233=0,0,1)) -> 87.79158333 | J234: =(J24+J43+J62+J81+J100+J119+J138+J157+J176+J195+J214+J233)/(IF(J24=0,0,1)+IF(J43=0,0,1)+IF(J62=0,0,1)+IF(J81=0,0,1)+IF(J100=0,0,1)+IF(J119=0,0,1)+IF(J138=0,0,1)+IF(J157=0,0,1)+IF(J176=0,0,1)+IF(J195=0,0,1)+IF(J214=0,0,1)+IF(J233=0,0,1)) -> 545.5941667 | L234: =(L24+L43+L62+L81+L100+L119+L138+L157+L176+L195)/(IF(L24=0,0,1)+IF(L43=0,0,1)+IF(L62=0,0,1)+IF(L81=0,0,1)+IF(L100=0,0,1)+IF(L119=0,0,1)+IF(L138=0,0,1)+IF(L157=0,0,1)+IF(L176=0,0,1)+IF(L195=0,0,1)) -> 
